[Event "18th Izmir Open 2019"]
[Site "Izmir"]
[Date "2019.09.04"]
[Round "4.7"]
[White "Ayazmali, Gizem"]
[Black "Unat, Can Haktan"]
[Result "0-1"]
[ECO "A23"]
[WhiteElo "1742"]
[BlackElo "2100"]
[Annotator "ChessBase"]
[PlyCount "110"]
[EventDate "2019.09.02"]
[EventType "swiss"]
[EventCountry "TUR"]
[SourceTitle "playchess.com"]
[Source "ChessBase"]
[SourceQuality "1"]
[TimeControl "5400+30"]

1. c4 {[%emt 0:00:30]} Nf6 {[%emt 0:01:30]} 2. Nc3 {[%emt 0:00:00]} e5 {[%emt 0:00:00]} 3. g3 {[%emt 0:00:00]} c6 {[%emt 0:00:00]} 4. Bg2 {[%emt 0:00:30]} d5 {[%emt 0:00:30]} 5. cxd5 {[%emt 0:05:30]} cxd5 {[%emt 0:00:00]} 6. d3 {[%emt 0:00:30]} Nc6 {[%emt 0:01:00]} 7. Bg5 {[%emt 0:03:30]} Be6 {[%emt 0:00:00]} 8. Bxf6 {[%emt 0:08:30]} gxf6 {[%emt 0:00:00]} 9. Qb3 {[%emt 0:22:30]} Nd4 {[%emt 0:08:30]} 10. Qd1 {[%emt 0:05:30]} Qa5 {[%emt 0:16:30]} 11. Nf3 {[%emt 0:25:30]} Nxf3+ {[%emt 0:16:30]} 12. Bxf3 {[%emt 0:00:30]} d4 {[%emt 0:00:00]} 13. Qa4+ {[%emt 0:00:30]} Qxa4 14. Nxa4 {[%emt 0:00:00]} Bb4+ {[%emt 0:00:30]} 15. Kd1 {[%emt 0:04:00]} Rb8 {[%emt 0:02:30]} 16. b3 {[%emt 0:00:30]} b5 {[%emt 0:01:30]} 17. Nb2 {[%emt 0:00:00]} Bc3 {[%emt 0:00:00]} 18. Rb1 {[%emt 0:00:00]} O-O {[%emt 0:00:00]} 19. e3 {[%emt 0:01:30]} Rb6 {[%emt 0:03:30]} 20. Kc2 {[%emt 0:12:59]} Rc8 {[%emt 0:00:30]} 21. Rbc1 {[%emt 0:00:49]} a5 {[%emt 0:00:30]} 22. Kb1 {[%emt 0:00:51]} a4 {[%emt 0:00:30]} 23. b4 {[%emt 0:00:28]} a3 {[%emt 0:01:30]} 24. Nd1 {[%emt 0:00:13]} Bxb4 {[%emt 0:00:00]} 25. Rxc8+ {[%emt 0:00:17]} Bxc8 {[%emt 0:00:00]} 26. Bd5 {[%emt 0:01:12]} Rd6 {[%emt 0:02:30]} 27. e4 {[%emt 0:00:21]} Bg4 {[%emt 0:00:00]} 28. f4 {[%emt 0:02:06]} Bf3 {[%emt 0:01:00]} 29. Rg1 {[%emt 0:00:13]} Rd8 {[%emt 0:02:30]} 30. Bb3 {[%emt 0:02:46]} Rc8 {[%emt 0:00:30]} 31. fxe5 {[%emt 0:00:42]} Bd2 {[%emt 0:00:30]} 32. Nf2 {[%emt 0:01:28]} fxe5 {[%emt 0:00:30]} 33. Bc2 {[%emt 0:01:32]} f6 {[%emt 0:02:30]} 34. g4 {[%emt 0:00:35]} Be3 {[%emt 0:00:30]} 35. Rg3 {[%emt 0:00:49]} Be2 {[%emt 0:00:30]} 36. g5 {[%emt 0:00:19]} fxg5 {[%emt 0:01:30]} 37. Ng4 {[%emt 0:00:40]} Bf4 {[%emt 0:01:30]} 38. Nh6+ {[%emt 0:00:31]} Kf8 {[%emt 0:00:30]} 39. Rg1 {[%emt 0:00:11]} Rc3 {[%emt 0:01:30]} 40. h4 {[%emt 0:00:48]} Be3 {[%emt 0:00:30]} 41. Re1 {[%emt 0:00:26]} Bxd3 {[%emt 0:00:30]} 42. Bxd3 {[%emt 0:00:06]} Rxd3 {[%emt 0:00:00]} 43. Rf1+ {[%emt 0:00:09]} Ke8 {[%emt 0:01:00]} 44. hxg5 {[%emt 0:00:28]} Bxg5 {[%emt 0:00:30]} 45. Nf7 {[%emt 0:00:10]} Bf4 {[%emt 0:00:30]} 46. Nd6+ {[%emt 0:00:02]} Kd7 {[%emt 0:00:30]} 47. Nxb5 {[%emt 0:00:21]} Kc6 {[%emt 0:00:30]} 48. Na7+ {[%emt 0:00:06]} Kc5 {[%emt 0:00:00]} 49. Nc8 {[%emt 0:01:13]} Rd2 {[%emt 0:01:00]} 50. Rc1+ {[%emt 0:00:38]} Kb4 {[%emt 0:00:00]} 51. Rh1 {[%emt 0:01:54]} h5 {[%emt 0:01:00]} 52. Ne7 {[%emt 0:00:24]} Rb2+ {[%emt 0:01:30]} 53. Ka1 {[%emt 0:00:01]} Re2 {[%emt 0:00:00]} 54. Nd5+ {[%emt 0:00:41]} Kc4 {[%emt 0:00:00]} 55. Nb6+ {[%emt 0:00:50]} Kd3 {[%emt 0:00:30]} 0-1

[Event "18th Izmir Open 2019"]
[Site "Izmir"]
[Date "2019.09.04"]
[Round "4.8"]
[White "Mohannad, Farhan"]
[Black "Demir, Baran"]
[Result "1/2-1/2"]
[ECO "E64"]
[WhiteElo "2094"]
[BlackElo "1859"]
[Annotator "NA"]
[PlyCount "61"]
[EventDate "2019.09.02"]
[EventType "swiss"]
[EventCountry "TUR"]
[SourceTitle "playchess.com"]
[Source "ChessBase"]
[SourceQuality "1"]
[TimeControl "5400+30"]

1. d4 {[%emt 0:00:30]} Nf6 {[%emt 0:07:30]} 2. Nf3 {[%emt 0:00:30]} g6 {[%emt 0:03:30]} 3. g3 {[%emt 0:00:30]} Bg7 {[%emt 0:00:00]} 4. Bg2 {[%emt 0:00:00]} O-O {[%emt 0:00:00]} 5. O-O {[%emt 0:00:00]} c5 {[%emt 0:00:30]} 6. d5 {[%emt 0:01:30]} d6 {[%emt 0:02:30]} 7. c4 {[%emt 0:00:30]} Na6 {[%emt 0:00:00]} 8. Nc3 {[%emt 0:00:30]} Nc7 {[%emt 0:00:00]} 9. e4 {[%emt 0:06:30]} Rb8 {[%emt 0:01:30]} 10. a4 {[%emt 0:03:30]} b6 {[%emt 0:00:30]} 11. Re1 {[%emt 0:11:30]} a6 {[%emt 0:03:30]} 12. h3 {[%emt 0:05:30]} b5 {[%emt 0:02:30] E64: King's Indian: Fianchetto: 6...c5 7 d5} 13. axb5 {[%emt 0:00:30]} (13. e5 Nd7 14. Bf4 dxe5 15. Nxe5 Nxe5 16. Bxe5 Bxe5 17. Rxe5 bxc4 18. Qd2 Bf5 19. Rae1 e6 20. d6 {0-1 (37) Fominyh,A (2520)-Belozerov,A (2541) Tomsk 2003}) 13... axb5 {[%emt 0:00:00]} 14. cxb5 $146 {[%emt 0:07:30]} ({Predecessor:} 14. e5 Nfe8 15. cxb5 Nxb5 16. Nxb5 Rxb5 17. Qe2 Nc7 18. Ra2 Bb7 19. Rd1 Qb8 20. exd6 exd6 {0-1 (37) Bensdorp,M (2284)-Pytel,K (2391) La Fere 2008}) 14... Nxb5 {[%emt 0:00:00]} 15. Nxb5 {[%emt 0:00:00]} Rxb5 {[%emt 0:00:30]} 16. e5 {[%emt 0:04:00]} Nd7 {[%emt 0:01:30]} 17. e6 {[%emt 0:00:30]} fxe6 {[%emt 0:11:30]} 18. Qe2 {[%emt 0:04:30]} ({But not} 18. dxe6 Nf6 $15) 18... Ra5 {[%emt 0:07:30]} 19. Rxa5 {[%emt 0:02:30]} Qxa5 {[%emt 0:00:30]} 20. Bd2 $11 {[%emt 0:09:30]} ({White must play} 20. Qxe6+ $16 Kh8 21. Bd2 (21. Qxe7 Ne5 $14)) 20... Qd8 {[%emt 0:00:30]} 21. dxe6 {[%emt 0:04:30]} Ne5 {[%emt 0:01:30]} 22. Nxe5 {[%emt 0:01:30]} Bxe5 {[%emt 0:06:30]} 23. Bc3 {[%emt 0:00:00]} Bxc3 {[%emt 0:01:30]} 24. bxc3 {[%emt 0:00:00]} Qa5 {[%emt 0:00:30]} 25. c4 {[%emt 0:00:30]} Qb4 {[%emt 0:03:30]} 26. Ra1 {[%emt 0:03:30]} Bb7 {[%emt 0:02:30]} 27. Ra7 {[%emt 0:01:30]} Qb1+ {[%emt 0:01:30]} 28. Kh2 {[%emt 0:00:00]} Bxg2 {[%emt 0:01:30]} 29. Kxg2 {[%emt 0:00:00]} Re8 {[%emt 0:00:30]} 30. g4 {[%emt 0:06:30]} g5 {[%emt 0:02:30]} 31. Qf3 {[%emt 0:07:30]} 1/2-1/2

[Event "18th Izmir Open 2019"]
[Site "Izmir"]
[Date "2019.09.04"]
[Round "5.6"]
[White "Demir, Baran"]
[Black "Salman, Ilhan Serhat"]
[Result "0-1"]
[ECO "A26"]
[WhiteElo "1859"]
[BlackElo "2037"]
[Annotator "NA"]
[PlyCount "52"]
[EventDate "2019.09.02"]
[EventType "swiss"]
[EventCountry "TUR"]
[SourceTitle "playchess.com"]
[Source "ChessBase"]
[SourceQuality "1"]
[TimeControl "5400+30"]

1. c4 {[%emt 0:04:30]} g6 {[%emt 0:03:30]} 2. Nc3 {[%emt 0:00:30]} Bg7 {[%emt 0:00:30]} 3. g3 {[%emt 0:00:30]} Nf6 {[%emt 0:02:30]} 4. Bg2 {[%emt 0:01:30]} O-O {[%emt 0:00:30]} 5. e4 {[%emt 0:00:30]} d6 {[%emt 0:02:30]} 6. Nge2 {[%emt 0:00:30]} e5 {[%emt 0:00:30]} 7. d3 {[%emt 0:00:00]} Nc6 {[%emt 0:02:30]} 8. O-O {[%emt 0:00:00]} Nd7 {[%emt 0:16:30]} 9. Be3 {[%emt 0:01:30]} Nc5 {[%emt 0:02:30]} 10. d4 {[%emt 0:05:30]} exd4 {[%emt 0:00:00]} 11. Nxd4 {[%emt 0:00:30]} Ne5 {[%emt 0:04:00]} 12. b4 {[%emt 0:01:30]} Ne6 {[%emt 0:10:30]} 13. Nxe6 {[%emt 0:01:30]} Bxe6 {[%emt 0:00:00]} 14. c5 {[%emt 0:01:30]} Bc4 {[%emt 0:03:00]} 15. Nd5 {[%emt 0:28:30]} Bxf1 {[%emt 0:01:30]} 16. Qxf1 {[%emt 0:00:30]} Ng4 {[%emt 0:02:30]} 17. cxd6 {[%emt 0:07:30]} Nxe3 {[%emt 0:09:30]} 18. Nxe3 {[%emt 0:06:30]} Qxd6 {[%emt 0:15:30]} 19. b5 {[%emt 0:05:30]} Bxa1 {[%emt 0:02:04]} 20. Qxa1 {[%emt 0:00:00]} f6 {[%emt 0:00:16]} 21. Qc3 {[%emt 0:12:19]} Rad8 {[%emt 0:00:37]} 22. Nd5 {[%emt 0:01:01]} c6 {[%emt 0:00:39]} 23. bxc6 {[%emt 0:00:23]} bxc6 {[%emt 0:00:06]} 24. Qxc6 {[%emt 0:00:26]} Qxc6 {[%emt 0:00:18]} 25. Ne7+ {[%emt 0:00:00]} Kg7 {[%emt 0:00:30]} 26. Nxc6 {[%emt 0:00:21]} Rd1+ {[%emt 0:00:30]} 0-1

[Event "18th Izmir Open 2019"]
[Site "Izmir"]
[Date "2019.09.04"]
[Round "5.7"]
[White "Tutuncu, Ali"]
[Black "Isik, Alparslan"]
[Result "0-1"]
[ECO "B24"]
[WhiteElo "1763"]
[BlackElo "2200"]
[Annotator "NA"]
[PlyCount "98"]
[EventDate "2019.09.02"]
[EventType "swiss"]
[EventCountry "TUR"]
[SourceTitle "playchess.com"]
[Source "ChessBase"]
[SourceQuality "1"]
[TimeControl "5400+30"]

1. e4 {[%emt 0:00:30]} c5 {[%emt 0:00:30]} 2. Nc3 {[%emt 0:00:00]} Nc6 {[%emt 0:00:00]} 3. g3 {[%emt 0:00:00]} Rb8 {[%emt 0:00:00]} 4. Bg2 {[%emt 0:00:30]} b5 {[%emt 0:00:30]} 5. d3 {[%emt 0:00:30]} g6 {[%emt 0:00:00]} 6. Be3 {[%emt 0:01:30]} b4 {[%emt 0:00:00]} 7. Nce2 {[%emt 0:01:30]} Bg7 {[%emt 0:00:30]} 8. Qc1 {[%emt 0:08:30]} d6 {[%emt 0:00:30]} 9. f4 {[%emt 0:00:30]} e6 {[%emt 0:00:30]} 10. Nf3 {[%emt 0:01:30]} Nge7 {[%emt 0:00:30]} 11. O-O {[%emt 0:00:30]} O-O {[%emt 0:00:00]} 12. Nd2 {[%emt 0:19:30]} Bb7 {[%emt 0:04:00]} 13. h3 {[%emt 0:04:30]} Qd7 {[%emt 0:01:30]} 14. Nb3 {[%emt 0:02:30]} a5 {[%emt 0:06:30]} 15. e5 {[%emt 0:03:30]} Nf5 {[%emt 0:20:30]} 16. exd6 {[%emt 0:04:30]} c4 {[%emt 0:08:30]} 17. dxc4 {[%emt 0:08:30]} Bxb2 {[%emt 0:01:30]} 18. Qxb2 {[%emt 0:00:30]} Nxe3 {[%emt 0:00:30]} 19. Nc5 {[%emt 0:00:30]} Qc8 {[%emt 0:11:30]} 20. d7 {[%emt 0:13:30]} Qc7 {[%emt 0:00:00]} 21. Ne4 {[%emt 0:00:00]} e5 {[%emt 0:01:00]} 22. Nf6+ {[%emt 0:03:00]} Kg7 {[%emt 0:02:30]} 23. Nd5 {[%emt 0:03:30]} Nxd5 {[%emt 0:03:30]} 24. cxd5 {[%emt 0:01:30]} Nd4 {[%emt 0:03:30]} 25. Nxd4 {[%emt 0:06:51]} exd4 {[%emt 0:00:00]} 26. Qxd4+ {[%emt 0:00:57]} Kg8 {[%emt 0:00:00]} 27. Qa7 {[%emt 0:05:53]} Rfd8 {[%emt 0:03:30]} 28. d6 {[%emt 0:03:23]} Qxd7 {[%emt 0:00:30]} 29. Rfe1 {[%emt 0:00:04]} Bxg2 {[%emt 0:02:30]} 30. Qxd7 {[%emt 0:00:06]} Rxd7 {[%emt 0:00:30]} 31. Kxg2 {[%emt 0:00:07]} Rxd6 {[%emt 0:00:00]} 32. Rad1 {[%emt 0:01:41]} Rxd1 {[%emt 0:00:00]} 33. Rxd1 {[%emt 0:00:04]} Rc8 {[%emt 0:00:30]} 34. Rd2 {[%emt 0:00:10]} Rc3 {[%emt 0:00:00]} 35. g4 {[%emt 0:01:40]} Ra3 {[%emt 0:00:00]} 36. f5 {[%emt 0:00:07]} gxf5 {[%emt 0:00:30]} 37. gxf5 {[%emt 0:00:05]} Kg7 {[%emt 0:00:00]} 38. h4 {[%emt 0:02:42]} Rxa2 {[%emt 0:01:00]} 39. Rf2 {[%emt 0:02:15]} b3 {[%emt 0:00:30]} 40. cxb3 {[%emt 0:00:24]} Rxf2+ {[%emt 0:00:30]} 41. Kxf2 {[%emt 0:00:01]} Kf6 {[%emt 0:00:00]} 42. Kg3 {[%emt 0:01:26]} Kxf5 {[%emt 0:00:00]} 43. Kf3 {[%emt 0:00:09]} h5 {[%emt 0:00:00]} 44. Kg3 {[%emt 0:00:12]} Ke4 {[%emt 0:00:00]} 45. Kg2 {[%emt 0:00:07]} f5 {[%emt 0:00:00]} 46. Kf2 {[%emt 0:01:50]} Kf4 {[%emt 0:00:00]} 47. Ke2 {[%emt 0:00:28]} Kg3 {[%emt 0:00:00]} 48. Kf1 {[%emt 0:00:14]} f4 {[%emt 0:00:00]} 49. Kg1 {[%emt 0:00:05]} f3 {[%emt 0:00:30]} 0-1

[Event "18th Izmir Open 2019"]
[Site "Izmir"]
[Date "2019.09.04"]
[Round "5.8"]
[White "Yuksel, Davut Can"]
[Black "Yilmaz, Turhan"]
[Result "0-1"]
[ECO "A48"]
[WhiteElo "1757"]
[BlackElo "2180"]
[Annotator "NA"]
[PlyCount "64"]
[EventDate "2019.09.02"]
[EventType "swiss"]
[EventCountry "TUR"]
[SourceTitle "playchess.com"]
[Source "ChessBase"]
[SourceQuality "1"]
[TimeControl "5400+30"]

1. d4 {[%emt 0:00:30]} g6 {[%emt 0:10:30]} 2. Bf4 {[%emt 0:00:00]} Nf6 {[%emt 0:00:00]} 3. e3 {[%emt 0:00:00]} Bg7 {[%emt 0:02:00]} 4. Nf3 {[%emt 0:00:30]} O-O {[%emt 0:00:30]} 5. h3 {[%emt 0:00:30]} d6 {[%emt 0:00:00]} 6. Be2 {[%emt 0:00:30]} Nfd7 {[%emt 0:00:00]} 7. O-O {[%emt 0:02:30]} h6 {[%emt 0:05:30]} 8. c4 {[%emt 0:01:30]} e5 {[%emt 0:00:30]} 9. Bh2 {[%emt 0:00:00]} Nc6 {[%emt 0:00:30]} 10. Nc3 {[%emt 0:01:00]} f5 {[%emt 0:00:30]} 11. Rc1 {[%emt 0:01:30]} Kh8 {[%emt 0:02:30]} 12. a3 {[%emt 0:01:30]} g5 {[%emt 0:05:30]} 13. b4 {[%emt 0:03:30]} exd4 {[%emt 0:10:30]} 14. Nxd4 {[%emt 0:00:30]} Nxd4 {[%emt 0:02:30]} 15. exd4 {[%emt 0:00:30]} f4 {[%emt 0:00:30]} 16. c5 {[%emt 0:06:30]} a6 {[%emt 0:03:30]} 17. cxd6 {[%emt 0:08:30]} cxd6 {[%emt 0:01:30]} 18. Nd5 {[%emt 0:03:30]} Nb6 {[%emt 0:03:30]} 19. Nc7 {[%emt 0:01:30]} Rb8 {[%emt 0:00:30]} 20. d5 {[%emt 0:00:00]} Be5 {[%emt 0:04:30]} 21. Bg4 {[%emt 0:04:00]} Bxg4 {[%emt 0:01:30]} 22. Qxg4 {[%emt 0:00:30]} Qf6 {[%emt 0:01:30]} 23. Qe6 {[%emt 0:04:30]} Rbc8 {[%emt 0:03:30]} 24. f3 {[%emt 0:01:30]} Rf7 {[%emt 0:04:30]} 25. Qxf6+ {[%emt 0:08:30]} Bxf6 {[%emt 0:01:30]} 26. Ne6 {[%emt 0:00:30]} Rxc1 {[%emt 0:00:30]} 27. Rxc1 {[%emt 0:00:00]} Bb2 {[%emt 0:00:30]} 28. Rb1 {[%emt 0:02:00]} Bxa3 {[%emt 0:03:30]} 29. Nd4 {[%emt 0:01:30]} Rc7 {[%emt 0:00:00]} 30. Nf5 {[%emt 0:01:30]} Nxd5 {[%emt 0:04:00]} 31. Nxd6 {[%emt 0:00:30]} Bxb4 {[%emt 0:00:30]} 32. Ne4 {[%emt 0:00:30]} a5 {[%emt 0:00:30]} 0-1

[Event "18th Izmir Open 2019"]
[Site "Izmir"]
[Date "2019.09.04"]
[Round "5.9"]
[White "Demirbag, Alihan"]
[Black "Ayazmali, Gizem"]
[Result "1-0"]
[ECO "B25"]
[WhiteElo "2121"]
[BlackElo "1742"]
[Annotator "NA"]
[PlyCount "147"]
[EventDate "2019.09.02"]
[EventType "swiss"]
[EventCountry "TUR"]
[SourceTitle "playchess.com"]
[Source "ChessBase"]
[SourceQuality "1"]
[TimeControl "5400+30"]

1. e4 {[%emt 0:00:30]} d6 {[%emt 0:00:30]} 2. Nc3 {[%emt 0:00:00]} g6 {[%emt 0:00:00]} 3. g3 {[%emt 0:00:00]} Bg7 {[%emt 0:00:00]} 4. Bg2 {[%emt 0:00:30]} Nf6 {[%emt 0:00:30]} 5. d3 {[%emt 0:00:00]} c5 {[%emt 0:00:30]} 6. f4 {[%emt 0:01:00]} Nc6 {[%emt 0:01:30]} 7. Nf3 {[%emt 0:00:00]} O-O {[%emt 0:00:30]} 8. O-O {[%emt 0:00:00]} Rb8 {[%emt 0:02:30]} 9. h3 {[%emt 0:00:30]} b5 {[%emt 0:20:30]} 10. g4 {[%emt 0:00:30]} b4 {[%emt 0:02:30]} 11. Ne2 {[%emt 0:00:30]} a5 {[%emt 0:00:30]} 12. Ng3 {[%emt 0:00:30]} a4 {[%emt 0:02:30]} 13. Rb1 {[%emt 0:00:00]} Ba6 {[%emt 0:02:30]} 14. b3 {[%emt 0:01:00]} Nd7 {[%emt 0:04:30]} 15. g5 {[%emt 0:05:30]} Nd4 {[%emt 0:04:30]} 16. Nxd4 {[%emt 0:00:30]} Bxd4+ {[%emt 0:00:30]} 17. Kh1 {[%emt 0:00:00]} Bb7 {[%emt 0:06:30]} 18. Qe2 {[%emt 0:04:00]} d5 {[%emt 0:12:30]} 19. e5 {[%emt 0:01:30]} e6 {[%emt 0:00:30]} 20. Qg4 {[%emt 0:13:30]} Qe7 {[%emt 0:00:30]} 21. Ne2 {[%emt 0:10:30]} axb3 {[%emt 0:08:30]} 22. axb3 {[%emt 0:00:30]} Rfc8 {[%emt 0:03:30]} 23. Nxd4 {[%emt 0:05:30]} cxd4 {[%emt 0:00:00]} 24. Rf2 {[%emt 0:00:30]} Ra8 {[%emt 0:01:00]} 25. Bf3 {[%emt 0:01:30]} Ra2 {[%emt 0:00:30]} 26. Bd1 {[%emt 0:00:30]} Nc5 {[%emt 0:01:30]} 27. Bb2 {[%emt 0:04:30]} Ba6 {[%emt 0:01:30]} 28. Bxd4 {[%emt 0:01:30]} Qc7 {[%emt 0:06:01]} 29. Rh2 {[%emt 0:09:30]} Nxd3 {[%emt 0:07:16]} 30. cxd3 {[%emt 0:00:00]} Bxd3 {[%emt 0:00:18]} 31. Rxa2 {[%emt 0:01:00]} Bxb1 {[%emt 0:00:01]} 32. Rf2 {[%emt 0:06:30]} Qc1 {[%emt 0:02:23]} 33. Kh2 {[%emt 0:03:30]} Bf5 {[%emt 0:04:30]} 34. Qe2 {[%emt 0:02:30]} Qb1 {[%emt 0:01:20]} 35. Qd2 {[%emt 0:03:30]} Rc1 {[%emt 0:00:54]} 36. Bf3 {[%emt 0:00:30]} Rc2 {[%emt 0:01:18]} 37. Qxb4 {[%emt 0:02:30]} Rxf2+ {[%emt 0:00:18]} 38. Bxf2 {[%emt 0:00:30]} Qf1 {[%emt 0:00:07]} 39. Bc5 {[%emt 0:01:30]} Qxh3+ {[%emt 0:00:43]} 40. Kg1 {[%emt 0:00:00]} Qg3+ {[%emt 0:00:25]} 41. Bg2 {[%emt 0:00:00]} h5 {[%emt 0:01:48]} 42. Bf2 {[%emt 0:04:30]} Qg4 {[%emt 0:01:23]} 43. Kh2 {[%emt 0:02:35]} h4 {[%emt 0:00:30]} 44. Qd4 {[%emt 0:02:04]} h3 {[%emt 0:00:21]} 45. Bf1 {[%emt 0:00:30]} Be4 {[%emt 0:01:13]} 46. Qe3 {[%emt 0:01:07]} Bg2 {[%emt 0:00:49]} 47. Be2 {[%emt 0:01:50]} Qf5 {[%emt 0:00:01]} 48. Kg3 {[%emt 0:02:43]} Qb1 {[%emt 0:00:31]} 49. Bg4 {[%emt 0:02:53]} Qh1 {[%emt 0:00:51]} 50. Bg1 {[%emt 0:00:45]} d4 {[%emt 0:00:49]} 51. Qxd4 {[%emt 0:00:26]} Bd5 {[%emt 0:00:37]} 52. Qf2 {[%emt 0:01:52]} Qe4 {[%emt 0:00:22]} 53. Bxh3 {[%emt 0:02:09]} Bxb3 {[%emt 0:00:21]} 54. Qe3 {[%emt 0:00:52]} Qb1 {[%emt 0:00:10]} 55. Bg2 {[%emt 0:00:27]} Bc4 {[%emt 0:00:32]} 56. Bf2 {[%emt 0:00:09]} Qa2 {[%emt 0:00:41]} 57. Qc3 {[%emt 0:00:52]} Qe2 {[%emt 0:00:23]} 58. Bf3 {[%emt 0:01:12]} Qf1 {[%emt 0:00:27]} 59. Qd4 {[%emt 0:01:31]} Bd3 {[%emt 0:00:44]} 60. Qd8+ {[%emt 0:01:58]} Kg7 {[%emt 0:00:13]} 61. Qf6+ {[%emt 0:01:05]} Kg8 {[%emt 0:00:06]} 62. Qd8+ {[%emt 0:00:05]} Kg7 {[%emt 0:00:04]} 63. Bg2 {[%emt 0:00:41]} Qe2 {[%emt 0:00:47]} 64. Qf6+ {[%emt 0:00:04]} Kg8 {[%emt 0:00:02]} 65. Qd8+ {[%emt 0:00:06]} Kg7 {[%emt 0:00:03]} 66. Qa8 {[%emt 0:01:18]} Qc2 {[%emt 0:02:10]} 67. Qc6 {[%emt 0:00:33]} Qe2 {[%emt 0:00:10]} 68. Qc1 {[%emt 0:00:44]} Bc4 {[%emt 0:00:21]} 69. Bc5 {[%emt 0:01:06]} Qd3+ {[%emt 0:01:16]} 70. Qe3 {[%emt 0:00:05]} Qc2 {[%emt 0:00:33]} 71. Be7 {[%emt 0:00:39]} Qa2 {[%emt 0:00:34]} 72. Bf6+ {[%emt 0:00:11]} Kh7 {[%emt 0:00:07]} 73. Kh2 {[%emt 0:00:20]} Qb3 {[%emt 0:00:21]} 74. Qa7 {[%emt 0:00:37]} 1-0

[Event "18th Izmir Open 2019"]
[Site "Izmir"]
[Date "2019.09.05"]
[Round "6.4"]
[White "Bicer, Atakan Mert"]
[Black "Yilmazyerli, Mert"]
[Result "0-1"]
[ECO "A10"]
[WhiteElo "2035"]
[BlackElo "2417"]
[Annotator "NA RC"]
[PlyCount "84"]
[EventDate "2019.09.02"]
[EventType "swiss"]
[EventCountry "TUR"]
[SourceTitle "playchess.com"]
[Source "ChessBase"]
[SourceQuality "1"]
[TimeControl "5400+30"]

1. c4 {[%emt 0:00:30]} b6 {[%emt 0:11:30]} 2. Nc3 {[%emt 0:00:00]} Bb7 {[%emt 0:05:30]} 3. e4 {[%emt 0:00:00]} e5 {[%emt 0:00:30]} 4. Nf3 {[%emt 0:00:30]} Nc6 {[%emt 0:00:30]} 5. d4 {[%emt 0:01:30]} exd4 {[%emt 0:00:30]} 6. Nxd4 {[%emt 0:00:00]} Bb4 {[%emt 0:02:30]} 7. Be3 {[%emt 0:02:00]} Nf6 {[%emt 0:01:30]} 8. f3 {[%emt 0:00:30]} O-O {[%emt 0:28:30]} 9. Be2 $11 {[%emt 1:01:30]} Bxc3+ {[%emt 0:00:30]} 10. bxc3 {[%emt 0:00:30]} d6 {[%emt 0:00:30]} 11. O-O {[%emt 0:00:30]} Nd7 {[%emt 0:00:30]} 12. Qe1 {[%emt 0:00:30]} Re8 {[%emt 0:00:30]} 13. Qg3 {[%emt 0:00:30]} Qf6 {[%emt 0:00:30]} 14. Rae1 {[%emt 0:00:30]} Nc5 {[%emt 0:00:30]} 15. h4 {[%emt 0:00:30]} Ne6 {[%emt 0:00:30]} 16. Rd1 {[%emt 0:00:30]} Qe5 {[%emt 0:01:30]} 17. f4 {[%emt 0:00:30]} Nexd4 {[%emt 0:00:00]} 18. Rxd4 {[%emt 0:00:00]} Qe7 {[%emt 0:02:00]} 19. Rd5 {[%emt 0:02:00]} Qxe4 {[%emt 0:07:30]} 20. Rf3 {[%emt 0:00:30]} Ne7 {[%emt 0:08:30]} 21. Bd3 {[%emt 0:03:30]} Bxd5 {[%emt 0:02:30]} 22. Bxe4 {[%emt 0:01:30]} Bxe4 {[%emt 0:00:00]} 23. f5 {[%emt 0:08:24]} Bxf3 {[%emt 0:02:00]} 24. Qxf3 {[%emt 0:00:13]} Nxf5 {[%emt 0:01:30]} 25. Bf2 {[%emt 0:01:46]} Ne7 {[%emt 0:00:00]} 26. h5 {[%emt 0:00:04]} h6 {[%emt 0:01:00]} 27. g4 {[%emt 0:01:16]} Rad8 {[%emt 0:03:47]} 28. Qb7 {[%emt 0:03:24]} Rd7 {[%emt 0:00:34]} 29. Qg2 {[%emt 0:04:18]} f6 {[%emt 0:01:41]} 30. g5 {[%emt 0:03:15]} fxg5 {[%emt 0:01:50]} 31. Qg4 {[%emt 0:00:25]} Rdd8 {[%emt 0:00:05]} 32. Qe6+ {[%emt 0:00:08]} Kh7 {[%emt 0:06:26]} 33. Qe4+ {[%emt 0:03:25]} Kh8 {[%emt 0:00:09]} 34. Qb7 {[%emt 0:00:34]} Rd7 {[%emt 0:02:22]} 35. Qe4 {[%emt 0:00:26]} Red8 {[%emt 0:00:39]} 36. Qe6 {[%emt 0:00:32]} Ng8 {[%emt 0:01:00]} 37. Qf5 {[%emt 0:00:50]} Re7 {[%emt 0:01:00]} 38. Bd4 {[%emt 0:00:48]} c5 {[%emt 0:00:31]} 39. Bf2 {[%emt 0:00:15]} Nf6 {[%emt 0:00:31]} 40. Qg6 {[%emt 0:00:46]} Ne4 {[%emt 0:00:44]} 41. Be3 {[%emt 0:00:34]} Rf8 {[%emt 0:00:16]} 42. Bxg5 {[%emt 0:00:16]} Nxg5 {[%emt 0:00:11]} 0-1

[Event "18th Izmir Open 2019"]
[Site "Izmir"]
[Date "2019.09.05"]
[Round "6.5"]
[White "Isik, Alparslan"]
[Black "Taspinar, Yanki"]
[Result "1-0"]
[ECO "A06"]
[WhiteElo "2200"]
[BlackElo "1970"]
[Annotator "NA"]
[PlyCount "73"]
[EventDate "2019.09.02"]
[EventType "swiss"]
[EventCountry "TUR"]
[SourceTitle "playchess.com"]
[Source "ChessBase"]
[SourceQuality "1"]
[TimeControl "5400+30"]

1. d4 {[%emt 0:00:30]} d5 {[%emt 0:00:30]} 2. c4 {[%emt 0:00:00]} e6 {[%emt 0:00:00]} 3. Nf3 {[%emt 0:00:00]} c6 {[%emt 0:00:00]} 4. e3 {[%emt 0:00:30]} Nf6 {[%emt 0:00:30]} 5. b3 {[%emt 0:00:30]} Nbd7 {[%emt 0:00:30]} 6. Bb2 {[%emt 0:00:30]} Bd6 {[%emt 0:00:30]} 7. Bd3 {[%emt 0:00:30]} O-O {[%emt 0:00:30]} 8. O-O {[%emt 0:00:30]} b6 {[%emt 0:00:30]} 9. Nbd2 {[%emt 0:00:30]} Bb7 {[%emt 0:00:30]} 10. Ne5 {[%emt 0:00:30]} c5 {[%emt 0:01:30]} 11. cxd5 {[%emt 0:07:30]} exd5 {[%emt 0:01:30]} 12. f4 {[%emt 0:00:30]} Ne4 {[%emt 0:09:30]} (12... cxd4 $11 {keeps the balance.} 13. exd4 Ne4) 13. Nxe4 {[%emt 0:00:30]} dxe4 {[%emt 0:00:30]} 14. Bc4 {[%emt 0:00:30]} Nf6 $16 {[%emt 0:02:30]} 15. Ng4 {[%emt 0:05:30]} Be7 {[%emt 0:13:30]} 16. Ne5 {[%emt 0:08:30]} Bd5 {[%emt 0:20:30]} 17. Bb5 {[%emt 0:04:30]} a6 {[%emt 0:07:30]} 18. Nc6 {[%emt 0:02:30]} Qd7 {[%emt 0:13:30]} 19. Nxe7+ {[%emt 0:02:30]} Qxe7 {[%emt 0:00:30]} 20. Be2 {[%emt 0:00:30]} Bb7 {[%emt 0:00:30]} 21. dxc5 {[%emt 0:12:30]} Qxc5 {[%emt 0:03:30]} 22. Qd4 {[%emt 0:10:30]} Qxd4 {[%emt 0:02:30]} 23. Bxd4 {[%emt 0:01:30]} Nd5 {[%emt 0:00:30]} 24. a4 {[%emt 0:04:30]} Rfd8 {[%emt 0:01:06]} 25. Rac1 {[%emt 0:01:30]} Rd6 {[%emt 0:01:45]} 26. g3 {[%emt 0:02:30]} Rad8 {[%emt 0:00:49]} 27. Rfd1 {[%emt 0:01:30]} f6 {[%emt 0:04:51]} 28. Kf2 {[%emt 0:02:30]} a5 {[%emt 0:04:23]} 29. Bc4 {[%emt 0:07:30]} R8d7 {[%emt 0:04:31]} 30. Bb5 {[%emt 0:01:30]} Rd8 {[%emt 0:00:10]} 31. Ke2 {[%emt 0:00:30]} Kf7 {[%emt 0:00:19]} 32. Rc2 {[%emt 0:00:30]} Ke6 {[%emt 0:01:25]} 33. Rcd2 {[%emt 0:01:30]} Nc7 {[%emt 0:04:53]} 34. Bxb6 {[%emt 0:07:32]} Nxb5 {[%emt 0:00:10]} 35. Bxd8 {[%emt 0:00:19]} Nc3+ {[%emt 0:00:08]} 36. Ke1 {[%emt 0:00:02]} Nxd1 {[%emt 0:00:43]} 37. Kxd1 {[%emt 0:00:00]} 1-0